bitfinex/quotes_SOLUSD_20250118
["timestamp","ask_amount","ask_price","bid_price","bid_amount"]
[1737170734918,0.5,226.6,226.59,5.16]
[1737170735242,17.0135402,226.6,226.59,5.16]
[1737170735520,17.0135402,226.6,226.58,5.2]
[1737170735820,29.3018402,226.59,226.48,5.2]
[1737170736121,7.5974,226.58,226.41,47.64]
[1737170736907,7.5974,226.58,226.44,16.5135402]
[1737170736908,16.5135402,226.52,226.44,16.5135402]
[1737170737099,16.5135402,226.56,226.49,16.5135402]
[1737170737295,27.22536044,226.6,226.52,26.72536044]
[1737170737493,26.72536044,226.59,226.56,20.0]
[1737170737701,0.5,226.6,226.53,5.24]
[1737170738323,0.5,226.6,226.56,20.0]
[1737170738832,0.5,226.6,226.59,26.72536044]
[1737170739034,0.53,226.6,226.59,26.72536044]
[1737170739612,0.53,226.6,226.56,20.0]
[1737170739814,0.53,226.6,226.58,26.72536044]
[1737170740535,0.53,226.6,226.59,5.24]
[1737170741533,27.25536044,226.6,226.54,5.24]
[1737170742035,0.53,226.6,226.59,73.45072088]
[1737170742217,0.53,226.6,226.59,25.3]
[1737170743222,0.53,226.6,226.59,5.3]
[1737170743223,27.25536044,226.6,226.59,5.3]
[1737170743426,27.25536044,226.6,226.56,5.3]
[1737170743623,0.53,226.6,226.56,5.3]
[1737170743834,27.25536044,226.6,226.56,5.3]
[1737170744208,26.72536044,226.58,226.56,5.3]
[1737170744826,27.25536044,226.6,226.56,5.3]
[1737170745011,0.53,226.6,226.56,25.3]
[1737170746030,0.53,226.6,226.59,20.0]
[1737170746933,0.53,226.6,226.59,26.72536044]
[1737170747140,0.00347793,226.6,226.5,0.66192479]
[1737170747329,0.00347793,226.6,226.58,26.72536044]
[1737170747639,0.00347793,226.6,226.54,26.72536044]
[1737170747826,0.00347793,226.6,226.55,5.28]
[1737170748149,0.00347793,226.6,226.59,26.72536044]
[1737170748307,0.00347793,226.6,226.55,32.00536044]
[1737170748510,0.00347793,226.6,226.59,26.72536044]
[1737170748830,0.00347793,226.6,226.59,20.0]
[1737170749240,0.03,226.66,226.59,74.11261579]
[1737170749536,0.03,226.66,226.64,26.72536044]
[1737170750205,0.00021967,226.66,226.64,26.72536044]
[1737170750829,0.00021967,226.66,226.65,0.66148258]
[1737170751241,78.19868,226.82,226.65,0.66148258]
[1737170751242,78.19868,226.82,226.77,20.0]
[1737170751538,24.0,226.93,226.81,53.45072088]
[1737170751741,24.0,226.93,226.92,53.45072088]
[1737170752319,12.5104,227.22,226.99,20.0]
[1737170752534,12.5104,227.22,226.99,92.89102933]
[1737170752723,11.89451719,227.39,226.99,92.89102933]
[1737170752724,1.72345788,227.41,227.15,53.45072088]
[1737170753046,26.72536044,227.32,227.15,106.61072088]
[1737170753225,26.72536044,227.32,227.15,53.16]
[1737170753548,26.72536044,227.34,227.15,106.61072088]
[1737170753725,76.71585214,227.16,227.15,119.87072088]
[1737170753926,39.23576044,227.38,227.18,33.26]
[1737170754125,26.72536044,227.34,227.18,47.38501471]
[1737170754332,1.15938739,227.19,227.18,47.38501471]
[1737170754538,1.15938739,227.19,227.18,53.02515029]
[1737170755116,1.15938739,227.19,227.18,58.16009955]
[1737170755429,8.2378,227.39,227.22,20.0]
[1737170755623,26.72536044,227.37,227.31,19.6507]
[1737170755936,26.72536044,227.33,227.31,19.6507]
[1737170756144,26.72536044,227.33,227.24,26.72536044]
[1737170756314,26.72536044,227.37,227.24,26.72536044]
[1737170756514,26.72536044,227.31,227.24,26.72536044]
[1737170756712,26.72536044,227.33,227.24,26.72536044]
[1737170757122,26.72536044,227.31,227.22,26.72536044]
[1737170757650,8.2378,227.39,227.24,26.72536044]
[1737170757949,26.72536044,227.34,227.29,20.0]
[1737170758128,26.72536044,227.36,227.29,20.0]
[1737170758329,26.72536044,227.36,227.31,20.0]
[1737170758653,26.72536044,227.38,227.31,20.0]
[1737170758829,13.3262,227.48,227.32,26.72536044]
[1737170759140,26.72536044,227.45,227.36,26.72536044]
[1737170759316,26.72536044,227.43,227.4,20.0]
[1737170759519,26.72536044,227.49,227.4,46.72536044]
[1737170759729,26.72536044,227.49,227.43,20.0]
[1737170759935,26.72536044,227.59,227.37,6.3395232]
[1737170759936,104.92404044,227.51,227.42,26.72536044]
[1737170760137,104.42404044,227.51,227.4,20.0]
[1737170760422,104.42404044,227.51,227.45,20.0]
[1737170760623,26.72536044,227.47,227.45,20.0]
[1737170760819,26.72536044,227.47,227.34,26.72536044]
[1737170761119,26.72536044,227.45,227.36,26.72536044]
[1737170761318,26.72536044,227.41,227.33,5.13494926]
[1737170761518,26.72536044,227.43,227.36,26.72536044]
[1737170761737,77.69868,227.51,227.39,46.72536044]
[1737170761942,26.72536044,227.5,227.44,20.0]
[1737170762148,26.72536044,227.48,227.44,20.0]
[1737170762449,26.72536044,227.46,227.44,20.0]
[1737170762636,26.72536044,227.46,227.35,26.72536044]
[1737170762838,0.03,227.43,227.35,27.38481804]
[1737170763043,0.03,227.43,227.39,26.72536044]
[1737170763227,0.03,227.43,227.4,0.65936556]
[1737170763626,0.03,227.43,227.34,5.68]
[1737170763627,0.03,227.43,227.42,20.0]
[1737170763938,0.03,227.43,227.29,11.24030909]
[1737170763939,0.03,227.43,227.29,5.13494926]
[1737170764141,26.72536044,227.3,227.17,26.72536044]
[1737170764331,20.4196,227.42,227.22,26.72536044]
[1737170764522,20.4196,227.42,227.23,5.7]
[1737170765132,20.4196,227.42,227.24,0.65974173]
[1737170765427,26.72536044,227.39,227.3,26.72536044]
[1737170765637,26.72536044,227.37,227.28,26.72536044]
[1737170765840,26.72536044,227.35,227.28,26.72536044]
[1737170766051,26.72536044,227.37,227.28,26.72536044]
[1737170766252,26.72536044,227.37,227.31,20.0]
[1737170766435,26.72536044,227.37,227.32,20.0]
[1737170766940,0.03,227.43,227.29,6.35964917]
[1737170766941,0.03,227.43,227.36,26.72536044]
[1737170767141,0.03,227.43,227.38,26.72536044]
[1737170767363,26.72536044,227.42,227.41,20.0]
[1737170767527,26.72536044,227.42,227.28,27.38486927]
[1737170767780,26.72536044,227.32,227.29,5.72]
[1737170768031,4.427,227.43,227.25,5.72]
[1737170768259,26.72536044,227.26,227.25,5.72]
[1737170768722,15.4193,227.43,227.25,5.72]
[1737170768926,26.72536044,227.34,227.26,26.72536044]
[1737170769160,26.72536044,227.34,227.29,20.0]
[1737170769343,0.03,227.43,227.36,20.0]
[1737170769656,26.72536044,227.4,227.31,26.72536044]
[1737170769871,26.72536044,227.4,227.34,20.0]
[1737170770164,0.03,227.43,227.34,20.0]
[1737170770350,0.03,227.43,227.39,26.72536044]
[1737170770526,0.03,227.43,227.42,20.0]
[1737170770962,0.03,227.43,227.41,27.38485331]
[1737170771728,77.69868,227.51,227.44,20.0]
[1737170771936,77.69868,227.51,227.48,26.72536044]
[1737170772129,26.72536044,227.81,227.48,26.72536044]
[1737170772130,17.571189,227.74,227.5,53.45072088]
[1737170772438,12.5088,227.9,227.7,26.72536044]
[1737170772439,26.72536044,227.79,227.7,26.72536044]
[1737170772630,12.5088,227.9,227.71,6.04]
[1737170772833,12.5088,227.9,227.77,20.0]
[1737170773141,26.72536044,227.84,227.77,20.0]
[1737170773328,26.72536044,227.84,227.7,17.546852]
[1737170773329,26.72536044,227.8,227.7,44.27221244]
[1737170773531,26.72536044,227.8,227.71,6.04]
[1737170773753,26.72536044,227.8,227.74,20.0]
[1737170774052,26.72536044,227.82,227.75,20.0]
[1737170774258,26.72536044,227.84,227.74,26.72536044]
[1737170774472,12.5088,227.9,227.75,53.52]
[1737170774655,26.72536044,227.83,227.75,53.52]
[1737170774846,26.72536044,227.85,227.78,20.0]
[1737170775239,26.72536044,227.83,227.78,20.0]
[1737170775562,26.72536044,227.81,227.78,20.0]
[1737170775768,26.72536044,227.79,227.78,20.0]
[1737170775937,26.72536044,227.79,227.78,26.04]
[1737170776136,1.0,227.95,227.78,26.04]
[1737170776451,26.72536044,227.92,227.81,26.72536044]
[1737170776650,26.72536044,227.91,227.84,20.0]
[1737170777936,26.72536044,227.89,227.84,20.0]
[1737170778138,104.92404044,227.86,227.69,26.72536044]
[1737170778343,26.72536044,227.79,227.76,6.12]
[1737170778577,26.72536044,227.83,227.76,6.12]
[1737170778951,26.72536044,227.79,227.76,6.12]
[1737170779146,26.72536044,227.77,227.65,70.0281987]
[1737170779371,26.72536044,227.67,227.65,53.52]
[1737170779571,26.72536044,227.72,227.65,53.52]
[1737170779768,26.72536044,227.81,227.65,53.52]
[1737170779769,26.72536044,227.74,227.65,53.52]
[1737170780147,26.72536044,227.72,227.65,53.52]
[1737170780759,26.72536044,227.67,227.65,53.52]
[1737170781156,26.72536044,227.69,227.65,53.52]
[1737170781345,26.72536044,227.71,227.65,53.52]
[1737170781552,26.72536044,227.69,227.65,53.52]
[1737170781956,78.19868,227.86,227.68,33.26]
[1737170782138,78.19868,227.86,227.81,26.72536044]
[1737170782460,78.19868,227.86,227.82,6.2]
[1737170782461,104.92404044,227.86,227.82,6.2]
[1737170782654,26.72536044,227.84,227.73,6.22]
[1737170782974,12.202,227.85,227.66,6.24]
[1737170783443,12.202,227.85,227.69,20.0]
[1737170783871,26.72536044,227.7,227.66,6.24]
[1737170784084,26.72536044,227.81,227.66,6.24]
[1737170784085,26.72536044,227.68,227.66,6.24]
[1737170784285,26.72536044,227.72,227.66,6.24]
[1737170784581,26.72536044,227.74,227.69,20.0]
[1737170784781,26.72536044,227.76,227.71,20.0]
[1737170784966,26.72536044,227.74,227.71,20.0]
[1737170785379,26.72536044,227.74,227.69,20.0]
[1737170786285,26.72536044,227.74,227.7,6.2]
[1737170786578,26.72536044,227.76,227.73,20.0]
[1737170786781,26.72536044,227.78,227.73,20.0]
[1737170786955,26.72536044,227.76,227.73,20.0]
[1737170787266,26.72536044,227.74,227.7,6.2]
[1737170787467,26.72536044,227.72,227.7,6.2]
[1737170787666,26.72536044,227.74,227.73,20.0]
[1737170787854,26.72536044,227.76,227.73,20.0]
[1737170788060,26.72536044,227.78,227.73,20.0]
[1737170789780,26.72536044,227.76,227.7,6.2]
[1737170790373,26.72536044,227.76,227.67,26.72536044]
[1737170790674,26.72536044,227.72,227.68,6.14]
[1737170790981,26.72536044,227.76,227.71,20.0]
[1737170791176,26.72536044,227.78,227.72,20.0]
[1737170792086,26.72536044,227.8,227.72,20.0]
[1737170792291,26.72536044,227.76,227.71,20.0]
[1737170792586,26.72536044,227.74,227.68,6.14]
[1737170792807,26.72536044,227.69,227.65,47.4]
[1737170793087,26.72536044,227.72,227.66,6.16]
[1737170793295,7.7645,227.74,227.66,6.16]
[1737170793462,12.202,227.73,227.6,0.063]
[1737170793664,12.202,227.73,227.47,6.3]
[1737170793870,26.72536044,227.56,227.47,33.02536044]
[1737170794065,26.72536044,227.54,227.47,6.3]
[1737170794279,26.72536044,227.49,227.47,6.3]
[1737170794591,26.72536044,227.49,227.39,26.72536044]
[1737170794799,26.72536044,227.49,227.42,6.3]
[1737170794973,7.7645,227.54,227.46,26.72536044]
[1737170795310,26.72536044,227.52,227.42,6.3]
[1737170795471,26.72536044,227.47,227.43,53.66]
[1737170795662,26.72536044,227.49,227.43,47.36]
[1737170795863,7.7645,227.54,227.47,26.72536044]
[1737170796058,26.72536044,227.53,227.43,80.38536044]
[1737170796290,7.7645,227.54,227.47,26.72536044]
[1737170796587,34.48986044,227.54,227.45,26.72536044]
[1737170796776,7.7645,227.54,227.5,20.0]
[1737170796962,34.48986044,227.54,227.5,20.0]
[1737170797159,34.48986044,227.54,227.45,26.72536044]
[1737170797586,26.72536044,227.5,227.43,53.68]
[1737170797770,26.72536044,227.46,227.43,53.68]
[1737170797966,26.72536044,227.5,227.46,20.0]
[1737170798172,26.72536044,227.52,227.47,20.0]
[1737170798379,34.48986044,227.54,227.47,20.0]
[1737170798584,7.7645,227.54,227.49,20.0]
[1737170798762,7.7645,227.54,227.53,20.0]
[1737170798962,26.72536044,227.62,227.53,20.0]
[1737170799173,12.202,227.72,227.64,20.0]
[1737170799371,26.72536044,227.66,227.65,6.34]
[1737170799567,4.3915,227.71,227.53,6.34]
[1737170799793,15.3703,227.71,227.49,26.72536044]
[1737170800092,7.7645,227.7,227.42,6.36]
[1737170800269,21.0245,227.7,227.42,6.36]
[1737170800471,15.3737,227.66,227.42,6.36]
[1737170800671,33.26,227.63,227.42,6.36]
[1737170800888,20.0,227.59,227.42,6.36]
[1737170801196,26.72536044,227.45,227.42,6.36]
[1737170801804,26.72536044,227.45,227.37,0.063]
[1737170802094,26.72536044,227.45,227.39,6.34]
[1737170803970,26.72536044,227.4,227.39,6.34]
[1737170804372,26.72536044,227.42,227.39,6.34]
[1737170804778,26.72536044,227.4,227.39,6.34]
[1737170805187,26.72536044,227.4,227.37,0.063]
[1737170806098,26.72536044,227.38,227.37,0.063]
[1737170806400,26.72536044,227.38,227.18,0.65980841]
[1737170806401,53.45072088,227.38,227.22,26.72536044]
[1737170806580,26.72536044,227.3,227.24,6.28]
[1737170806775,26.72536044,227.26,227.19,17.588531]
[1737170806979,26.72536044,227.24,227.19,17.588531]
[1737170807186,26.72536044,227.22,227.19,17.588531]
[1737170807494,26.72536044,227.28,227.19,26.72536044]
[1737170807874,26.72536044,227.23,227.15,26.72536044]
[1737170808073,34.94526044,227.21,227.11,0.063]
[1737170808272,26.72536044,227.16,227.11,0.063]
[1737170808586,26.72536044,227.15,227.11,0.063]
[1737170808773,26.72536044,227.17,227.11,0.063]
[1737170808979,26.72536044,227.13,227.11,0.063]
[1737170809790,26.72536044,227.13,227.03,6.3]
[1737170810102,26.72536044,227.11,227.03,6.3]
[1737170810321,26.72536044,227.11,227.02,26.72536044]
[1737170810499,34.94526044,227.21,227.1,26.72536044]
[1737170810677,26.72536044,227.21,227.13,26.72536044]
[1737170810881,26.72536044,227.23,227.13,26.72536044]
[1737170811406,26.72536044,227.23,227.15,26.72536044]
[1737170811610,26.72536044,227.25,227.18,20.0]
[1737170811818,26.72536044,227.21,227.18,20.0]
[1737170812184,26.72536044,227.21,227.04,27.44870419]
[1737170812390,1.28540943,227.19,227.11,26.72536044]
[1737170812707,0.03,227.3,227.18,20.0]
[1737170812879,0.03,227.3,227.25,20.0]
[1737170813205,0.03,227.3,227.18,20.0]
[1737170813206,26.72536044,227.26,227.18,6.32]
[1737170813399,26.72536044,227.26,227.07,33.04536044]
[1737170813707,26.72536044,227.26,227.07,6.32]
[1737170813888,13.26,227.25,227.04,0.063]
[1737170814482,13.26,227.25,227.04,6.403]
[1737170814687,26.72536044,227.1,227.04,6.403]
[1737170815988,13.26,227.2,227.04,6.403]
[1737170815989,26.72536044,227.08,227.04,6.403]
[1737170816900,26.72536044,227.06,227.04,0.063]
[1737170817091,21.1255,227.11,227.07,20.0]
[1737170817092,8.2199,227.11,227.07,20.0]
[1737170817305,8.2199,227.11,227.09,20.0]
[1737170817510,8.2199,227.11,227.04,26.78836044]
[1737170817693,26.72536044,227.13,227.04,26.78836044]
[1737170817891,26.72536044,227.17,227.11,20.0]
[1737170818411,26.72536044,227.15,227.06,26.72536044]
[1737170818595,26.72536044,227.13,227.04,26.78836044]
[1737170818794,26.72536044,227.13,227.05,6.32]
[1737170819201,26.72536044,227.11,227.05,6.32]
[1737170819392,12.9056,227.19,227.05,6.32]
[1737170819393,26.72536044,227.09,227.05,6.32]
[1737170819604,26.72536044,227.12,227.05,6.32]
[1737170819811,26.72536044,227.12,227.08,20.0]
[1737170820392,26.72536044,227.14,227.08,20.0]
[1737170820590,26.72536044,227.09,227.04,0.063]
[1737170820820,26.72536044,227.06,227.04,0.063]
[1737170821106,26.72536044,227.08,227.04,0.063]
[1737170821423,26.72536044,227.08,226.91,53.78]
[1737170821424,26.72536044,227.06,226.91,53.78]
[1737170821638,26.72536044,226.93,226.82,5.0778937]
[1737170821806,26.72536044,226.9,226.87,17.613023]
[1737170821998,26.72536044,226.9,226.81,0.063]
[1737170822397,26.72536044,226.92,226.81,0.063]
[1737170822596,12.6252,227.0,226.84,26.72536044]
[1737170822837,26.72536044,226.94,226.82,6.36]
[1737170823017,26.72536044,226.92,226.83,26.72536044]
[1737170823331,26.72536044,226.92,226.82,6.36]
[1737170823635,26.72536044,226.92,226.84,26.72536044]
[1737170823793,26.72536044,226.92,226.82,6.36]
[1737170823794,26.72536044,226.94,226.82,6.36]
[1737170823991,26.72536044,226.94,226.84,26.72536044]
[1737170824198,26.72536044,226.92,226.84,26.72536044]
[1737170824424,26.72536044,226.94,226.87,20.0]
[1737170824639,8.2199,227.0,226.87,20.0]
[1737170824640,26.72536044,226.92,226.87,20.0]
[1737170824934,26.72536044,226.92,226.86,20.0]
[1737170826022,26.72536044,226.9,226.86,20.0]
[1737170826537,26.72536044,226.9,226.83,26.32]
[1737170827029,26.72536044,226.86,226.81,0.063]
[1737170827199,26.72536044,226.88,226.81,0.063]
[1737170827393,26.72536044,226.86,226.81,0.063]
[1737170828030,26.72536044,226.87,226.81,20.063]
[1737170828320,26.72536044,226.85,226.81,20.063]
[1737170828527,26.72536044,226.83,226.81,0.063]
[1737170828832,4.4057,226.98,226.81,0.063]
[1737170829022,26.72536044,226.89,226.83,20.0]
[1737170829427,26.72536044,226.92,226.87,20.0]
[1737170829733,26.72536044,226.94,226.87,20.0]
[1737170829930,26.72536044,226.94,226.86,26.72536044]
[1737170830241,26.72536044,226.98,226.9,26.72536044]
[1737170830739,26.72536044,226.94,226.91,6.32]
[1737170831635,26.72536044,226.92,226.81,0.063]
[1737170831842,26.72536044,226.84,226.81,0.063]
[1737170833125,34.45576044,226.82,226.81,0.063]
[1737170833328,61.18112088,226.82,226.69,6.32]
[1737170833539,26.72536044,226.72,226.69,6.32]
[1737170834127,26.72536044,226.7,226.69,6.32]
[1737170834446,26.72536044,226.7,226.59,0.063]
[1737170834648,47.71576044,226.82,226.59,0.063]
[1737170834649,26.72536044,226.66,226.59,0.063]
[1737170835253,26.72536044,226.71,226.59,0.063]
[1737170835546,26.72536044,226.64,226.59,0.063]
[1737170835721,26.72536044,226.68,226.59,26.78836044]
[1737170835925,26.72536044,226.7,226.61,26.72536044]
[1737170836120,26.72536044,226.72,226.66,20.0]
[1737170836338,26.72536044,226.68,226.59,26.78836044]
[1737170836521,26.72536044,226.68,226.65,20.0]
[1737170836858,38.86456044,226.82,226.65,20.0]
[1737170837015,26.72536044,226.7,226.65,20.0]
[1737170837735,26.72536044,226.66,226.62,47.54]
[1737170838644,26.72536044,226.68,226.62,47.54]
[1737170840355,26.72536044,226.66,226.62,47.54]
[1737170840921,13.0379,226.83,226.62,47.54]
[1737170840922,8.1599,226.91,226.66,22.99963801]
[1737170841228,8.1599,227.06,226.9,26.72536044]
[1737170841428,8.1599,227.06,226.82,26.72536044]
[1737170841429,26.72536044,227.16,227.02,26.72536044]
[1737170841639,8.1599,227.18,227.05,20.0]
[1737170842232,8.1599,227.28,227.05,5.72989922]
[1737170842547,8.1599,227.28,226.91,54.12]
[1737170842548,4.4002,227.26,227.06,5.72989922]
[1737170842732,26.72536044,227.09,227.0,26.72536044]
[1737170842934,26.72536044,227.09,226.98,6.52]
[1737170843250,26.72536044,227.11,227.03,20.0]
[1737170843453,26.72536044,227.17,227.11,20.0]
[1737170843741,26.72536044,227.19,227.11,20.0]
[1737170843941,26.72536044,227.12,226.98,6.52]
[1737170844144,31.12556044,227.26,226.99,26.72536044]
[1737170844145,26.72536044,227.08,226.99,26.72536044]
[1737170844352,26.72536044,227.12,227.03,26.72536044]
[1737170844641,26.72536044,227.06,227.04,17.603102]
[1737170844857,26.72536044,227.06,226.95,26.72536044]
[1737170845147,26.72536044,227.0,226.9,26.72536044]
[1737170845345,26.72536044,227.02,226.94,26.72536044]
[1737170845859,26.72536044,227.0,226.92,26.72536044]
[1737170846159,8.1599,227.08,226.93,26.72536044]
[1737170846325,26.72536044,227.02,226.93,26.72536044]
[1737170846645,26.72536044,226.95,226.83,13.33602095]
[1737170846948,26.72536044,226.95,226.85,26.72536044]
[1737170847247,26.72536044,226.95,226.86,6.54]
[1737170847428,26.72536044,226.95,226.87,26.72536044]
[1737170848042,26.72536044,226.95,226.85,26.72536044]
[1737170848344,8.1899,227.08,226.87,26.72536044]
[1737170848537,8.1899,227.08,226.98,26.72536044]
[1737170848740,8.1899,227.08,226.93,26.72536044]
[1737170848741,8.1899,227.08,227.0,26.72536044]
[1737170848942,8.1899,227.08,226.67,12.56]
[1737170848943,13.26,226.99,226.67,12.56]
[1737170849131,26.72536044,226.87,226.67,12.56]
[1737170849334,21.2206,227.0,226.71,17.627378]
[1737170849649,26.72536044,226.91,226.81,26.72536044]
[1737170849853,26.72536044,226.88,226.78,26.72536044]
[1737170850149,26.72536044,226.9,226.8,26.72536044]
[1737170850337,21.2206,227.0,226.74,26.72536044]
[1737170850338,26.72536044,226.84,226.74,26.72536044]
[1737170850736,26.72536044,226.86,226.79,20.0]
[1737170850930,26.72536044,226.86,226.76,26.72536044]
[1737170851131,26.72536044,226.88,226.81,20.0]
[1737170851449,26.72536044,226.9,226.8,26.72536044]
[1737170851823,26.72536044,226.88,226.83,20.0]
[1737170852032,26.72536044,226.88,226.78,26.72536044]
[1737170852254,26.72536044,226.9,226.8,26.72536044]
[1737170852427,26.72536044,226.88,226.83,20.0]
[1737170852628,26.72536044,226.88,226.79,6.72]
[1737170852823,26.72536044,226.88,226.8,26.72536044]
[1737170853026,0.050609,226.87,226.82,26.72536044]
[1737170853248,0.050609,226.87,226.86,20.0]
[1737170853545,0.050609,226.87,226.86,46.72536044]
[1737170854248,26.72536044,226.97,226.86,46.72536044]
[1737170854452,26.72536044,226.97,226.91,20.0]
[1737170854647,26.72536044,226.95,226.91,20.0]
[1737170855041,26.72536044,226.93,226.82,26.72536044]
[1737170855248,26.72536044,226.91,226.8,26.72536044]
[1737170855433,26.72536044,226.89,226.79,6.72]
[1737170855759,26.72536044,226.93,226.78,26.72536044]
[1737170855760,26.72536044,226.88,226.78,26.72536044]
[1737170855956,26.72536044,227.01,226.86,26.72536044]
[1737170856129,4.4337,227.08,226.79,6.82]
[1737170856332,0.03,227.08,226.8,0.6610341]
[1737170856825,0.03,227.08,226.82,20.0]
[1737170857246,26.72536044,226.97,226.9,20.0]
[1737170857949,26.72536044,226.95,226.85,26.72536044]
[1737170858260,26.72536044,226.97,226.9,20.0]
[1737170858557,26.72536044,226.97,226.89,26.72536044]
[1737170858848,26.72536044,226.97,226.87,26.72536044]
[1737170859753,26.72536044,226.93,226.88,6.8]
[1737170860362,26.72536044,226.95,226.88,6.8]
[1737170860557,26.72536044,226.95,226.91,20.0]
[1737170861239,26.72536044,226.97,226.91,20.0]
[1737170861427,26.72536044,226.99,226.92,20.0]
[1737170861633,26.72536044,227.01,226.91,26.72536044]
[1737170861833,0.03,227.04,226.95,26.72536044]
[1737170862646,0.03,227.04,227.0,26.72536044]
[1737170863265,0.03,227.04,227.02,26.72536044]
[1737170863647,0.03,227.04,227.03,26.72536044]
[1737170863845,0.03,227.31,227.25,26.72536044]
[1737170864261,26.72536044,227.28,227.21,26.72536044]
[1737170864557,26.75536044,227.3,227.21,26.72536044]
[1737170864856,26.75536044,227.27,227.18,33.52536044]
[1737170865064,26.72536044,227.2,227.13,47.54]
[1737170865370,26.72536044,227.22,227.13,74.26536044]
[1737170865754,26.72536044,227.18,227.09,26.72536044]
[1737170866059,26.72536044,227.11,227.03,6.78]
[1737170866360,26.72536044,227.06,226.94,6.82]
[1737170866566,26.72536044,227.08,226.99,26.72536044]
[1737170866760,26.72536044,227.14,227.05,26.72536044]
[1737170867067,8.1102,227.16,226.99,26.72536044]
[1737170867068,26.72536044,227.08,226.99,26.72536044]
[1737170867460,26.72536044,227.06,226.97,26.72536044]
[1737170867963,26.72536044,227.04,226.95,26.72536044]
[1737170868264,26.72536044,227.04,226.98,20.0]
[1737170868565,26.72536044,227.02,226.94,6.82]
[1737170868954,13.26,227.13,226.94,6.82]
[1737170868955,26.72536044,227.0,226.94,6.82]
[1737170869473,26.72536044,226.98,226.94,6.82]
[1737170869984,26.72536044,226.96,226.87,74.24536044]
[1737170870663,26.72536044,227.04,226.87,47.52]
[1737170870664,26.72536044,226.92,226.87,47.52]
[1737170870846,25.5806,226.99,226.87,47.52]
[1737170870847,26.72536044,226.93,226.87,47.52]
[1737170871049,26.72536044,226.95,226.87,47.52]
[1737170871250,12.3206,226.99,226.91,26.72536044]
[1737170871450,26.72536044,226.98,226.89,26.72536044]
[1737170871677,26.72536044,226.98,226.92,20.0]
[1737170871875,26.72536044,226.96,226.87,74.24536044]
[1737170872062,26.72536044,226.98,226.89,26.72536044]
[1737170872264,12.3206,226.99,226.9,20.0]
[1737170872556,12.3206,226.99,226.9,53.48536044]
[1737170872967,26.72536044,227.0,226.92,26.72536044]
[1737170873163,26.72536044,227.02,226.94,26.72536044]
[1737170873363,26.72536044,227.04,226.94,26.72536044]
[1737170873657,26.72536044,227.06,226.99,20.0]
[1737170874278,26.72536044,227.06,227.01,20.0]
[1737170874595,26.72536044,227.06,227.01,19.9999998]
[1737170874762,26.72536044,227.08,227.01,19.9999998]
[1737170875354,0.03,227.1,227.01,19.9999998]
[1737170875355,26.72536044,227.06,227.01,19.9999998]
[1737170875558,26.72536044,227.04,226.96,26.72536044]
[1737170875784,26.72536044,226.98,226.88,26.72536044]
[1737170876086,26.72536044,226.97,226.89,26.72536044]
[1737170876381,26.72536044,226.99,226.89,26.72536044]
[1737170877079,26.72536044,226.99,226.94,20.0]
[1737170877280,26.72536044,226.99,226.91,26.72536044]
[1737170877594,26.72536044,227.05,227.0,20.0]
[1737170877782,26.72536044,227.03,227.0,20.0]
[1737170878294,26.72536044,227.05,226.98,20.0]
[1737170878493,26.72536044,227.05,227.0,20.0]
[1737170878784,26.72536044,227.09,227.0,26.66]
[1737170878966,26.72536044,227.09,227.04,20.0]
[1737170879175,26.72536044,227.07,227.04,20.0]
[1737170879371,26.72536044,227.07,227.0,6.66]
[1737170879792,26.72536044,227.07,227.03,20.0]
[1737170880299,26.72536044,227.05,227.0,6.66]
[1737170880498,26.72536044,227.02,227.0,6.66]
[1737170880792,26.72536044,227.03,227.0,6.66]
[1737170881993,26.72536044,227.05,227.0,6.66]
[1737170882381,0.03,227.1,227.0,6.66]
[1737170882382,26.72536044,227.03,227.0,6.66]
[1737170882907,26.72536044,227.03,226.97,20.0]